Cogmind - Beta 15 @@@ ROGUE MODE // 2025.06.06 @ 17:23:47 Player: EX-OCT Result: Destroyed by P-60 Hacker with Shock Rifle Performance ------------- Evolutions (2) 1000 Regions Visited (6) 1200 Robots Destroyed (34) 170 Value Destroyed (705) 705 Prototype IDs (26) 520 Alien Tech Used (0) 0 Bonus (513) 513 TOTAL SCORE: 4108 Bonus ------- High Alert Combat Kills 13 Entered Garrisons 200 Aligned with FarCom 300 Cogmind --------- Core Integrity 0/550 Matter 59/300 Energy 100/100 System Corruption 10% Temperature Cool (0) Movement Core (400) Ox7 Location -8/Garrison Parts ------- > --- POWER (1) -------- (None) > --- PROPULSION (4) --- (None) > --- UTILITY (4) ------ Large Storage Unit > --- WEAPON (2) ------- Maul > --- INVENTORY (15) --- Heavy Ion Engine Faulty Improved Flight Unit Improved Flight Unit Improved Flight Unit Improved Flight Unit Surge Thruster Surge Thruster Trap Extractor (0/4) Assault Rifle Heavy Assault Rifle High-powered Shotgun High-powered Shotgun Light Cannon Advanced Assault Cannon Flail Peak State ------------ > --- POWER ------------ Heavy Ion Engine > --- PROPULSION ------- Flying Fortress v7 > --- UTILITY ---------- Large Storage Unit Structural Scanner Seismic Detector Improved Light Armor Plating > --- WEAPON ----------- Advanced Assault Cannon Advanced Assault Cannon > --- INVENTORY -------- Heavy Ion Engine Flight Unit Flight Unit Surge Thruster Scrap Suit Trap Extractor Assault Rifle Heavy Assault Rifle High-powered Shotgun High-powered Shotgun Light Cannon Flail Flail Maul [Rating: 52] Favorites ----------- Power Ion Engine Engine Ion Engine Propulsion Wheel Treads Light Treads Wheel Wheel Flight Unit Flying Fortress v7 Utility Structural Scanner Device Structural Scanner Storage Large Storage Unit Protection Hardened Light Armor Plating Weapon Light Cannon Ballistic Gun High-powered Shotgun Ballistic Cannon Light Cannon Launcher Mini Grenade Launcher Impact Weapon Hammer Build | -11 -10 -10 -10 -9 -8 -8 ------- Run | Yrd Mat Min Exi Min Mat Gar Slots Evolved 4 | . . . . . 4 . Power . | . . . . . . . Propulsion 2 | . . . . . 2 . Utility 2 | . . . . . 2 . Weapon . | . . . . . . . Parts Attached 32 | 7 10 1 . . 14 . Power 4 | 1 1 . . . 2 . Engine 4 | 1 1 . . . 2 . Core . | . . . . . . . Reactor . | . . . . . . . Propulsion 5 | 2 2 . . . 1 . Treads 1 | . 1 . . . . . Leg . | . . . . . . . Wheel 3 | 2 1 . . . . . Hover . | . . . . . . . Flight 1 | . . . . . 1 . Utility 8 | 2 3 . . . 3 . Device 2 | 1 1 . . . . . Storage 3 | 1 2 . . . . . Processor . | . . . . . . . Hackware . | . . . . . . . Protection 3 | . . . . . 3 . Artifact . | . . . . . . . Weapon 15 | 2 4 1 . . 8 . Energy Gun . | . . . . . . . Energy Cannon . | . . . . . . . Ballistic Gun 5 | 2 . 1 . . 2 . Ballistic Cannon 5 | . 3 . . . 2 . Launcher 2 | . . . . . 2 . Special Weapon . | . . . . . . . Impact Weapon 3 | . 1 . . . 2 . Slashing Weapon . | . . . . . . . Piercing Weapon . | . . . . . . . Special Melee Weapon . | . . . . . . . Unidentified Prototypes 1 | . . . . . 1 . Parts Lost 7 | . . . . . 2 5 Power 1 | . . . . . . 1 Propulsion 1 | . . . . . . 1 Utility 4 | . . . . . 2 2 Weapon 1 | . . . . . . 1 Highest Loss Streak 5 | . . . . . 1 5 To Critical Strikes . | . . . . . . . Average Backups 9 | . 7 9 10 11 11 15 Power . | . 1 1 1 1 . 1 Propulsion 2 | . 1 2 2 3 2 6 Utility 1 | . 1 1 2 2 1 1 Weapon 4 | . 3 5 5 5 6 7 Tool/Special . | . . . . . . . Unused Backups 17 | . 1 . . 2 7 7 Power 1 | . . . . . . 1 Propulsion 11 | . 1 . . 2 4 4 Utility 2 | . . . . . 1 1 Weapon 3 | . . . . . 2 1 Tool/Special . | . . . . . . . Average Slot Usage (%) 87 | . 100 99 100 100 68 38 Engine 11 | . 14 14 14 14 9 4 Treads 7 | . 9 14 14 14 . . Wheel 10 | . 18 14 14 14 . . Flight 3 | . . . . . 8 4 Device 14 | . 14 14 14 14 17 7 Storage 12 | . 14 14 14 14 9 9 Protection 1 | . . . . . 5 . Ballistic Gun 8 | . 5 7 14 14 10 . Ballistic Cannon 11 | . 17 19 14 14 2 5 Impact Weapon 2 | . 4 . . . 4 9 Peak Build Rating 52 | 7 8 10 13 13 52 47 Average Rating 21 | 5 7 8 11 13 46 22 On Entrance 13 | . 7 7 10 13 13 47 Naked Turns . | . . . . . . . Heaviest Build 45 | 15 32 32 32 32 45 39 Greatest Support 50 | 20 20 10 10 10 50 50 Greatest Overweight (x) 3 | . 3 3 3 3 . . Average Overweight (x) 1 | . 1 2 3 3 . . Largest Inventory Capacity 15 | 8 15 15 15 15 15 15 Average Capacity 13 | 7 10 15 15 15 15 15 Most Carried 15 | 1 10 11 15 15 15 15 Average Carried 10 | . 7 9 13 14 11 15 Final Capacity 15 | 8 15 15 15 15 15 15 Final Carried 15 | 1 9 11 15 15 15 15 Class Distribution -------------------- 100% | Mutant Dominant Class ---------------- Mutant | -10/Materials Mutant | -10/Mines Mutant | -10/Exiles Mutant | -9/Mines Mutant | -8/Materials Mutant | -8/Garrison Resources | -11 -10 -10 -10 -9 -8 -8 ----------- Run | Yrd Mat Min Exi Min Mat Gar Matter Collected 1097 | 318 282 82 . 34 381 . Remotely . | . . . . . . . Salvage Created 793 | 126 217 37 . 21 338 54 Parts 65 | 5 18 4 . 3 33 2 Haulers Intercepted 3 | . 2 . . . 1 . Recyclers Shooed . | . . . . . . . Parts Field Recycled . | . . . . . . . Retrieved Matter . | . . . . . . . Parts Self-Destructed . | . . . . . . . Prevented . | . . . . . . . Kills | -11 -10 -10 -10 -9 -8 -8 ------- Run | Yrd Mat Min Exi Min Mat Gar Combat Hostiles Destroyed 26 | . 5 3 . 2 14 2 Guns 11 | . . . . 1 10 . Cannons 11 | . 5 3 . 1 1 1 AOE 3 | . . . . . 3 . Classes Destroyed 10 | 2 4 . . . 3 1 Tunneler 1 | 1 . . . . . . Hauler 3 | . 2 . . . 1 . Recycler 1 | 1 . . . . . . Watcher 3 | . 2 . . . 1 . Swarmer 14 | . 3 3 . 2 6 . Cutter 3 | . . . . . 3 . Grunt 3 | . 2 . . . 1 . Sentry 3 | . . . . . 3 . Hunter 1 | . . . . . 1 . Programmer 2 | . . . . . . 2 Best Kill Streak 3 | 1 3 3 . 2 3 1 Combat Bots Only 3 | . 3 3 . 2 3 1 Max Kills in Single Turn 2 | 1 1 1 . 1 2 1 Gunslinging . | . . . . . . . Exploded 2 | . . . . . 2 . Melee . | . . . . . . . Uniques/NPCs Destroyed . | . . . . . . . Combat | -11 -10 -10 -10 -9 -8 -8 -------- Run | Yrd Mat Min Exi Min Mat Gar Hostile Shots Fired 343 | . 21 29 . 10 212 71 Missed 119 | . 6 7 . 1 86 19 Hits 224 | . 15 22 . 9 126 52 Melee 1 | . . . . . 1 . Projectile 223 | . 15 22 . 9 125 52 Critical Strikes 8 | . 1 . . . 4 3 Damage Taken 2864 | . 190 172 . 95 1627 780 Core 580 | . 6 19 . . 166 389 Absorbed by Shields . | . . . . . . . Core Remaining (%) 95 | 100 . . . 90 . . Volleys Fired 89 | 10 21 9 . 5 43 1 Largest 2 | 2 2 2 . 2 2 1 Hottest 80 | 40 60 60 . 55 80 40 Shots Fired 176 | 20 42 18 . 10 85 1 Gun 89 | 20 8 . . 5 56 . Cannon 84 | . 34 18 . 5 26 1 Launcher 3 | . . . . . 3 . Special . | . . . . . . . Kinetic 173 | 20 42 18 . 10 82 1 Thermal . | . . . . . . . Explosive 3 | . . . . . 3 . Electromagnetic . | . . . . . . . Robot Hit Streak 8 | 4 7 2 . 2 8 3 Robot Miss Streak 5 | 3 4 5 . 4 5 . Penetration Max . | . . . . . . . Secondary Targets . | . . . . . . . Shots Hit Robots 113 | 14 24 5 . 4 53 13 Core Hits 42 | 3 10 3 . 2 23 1 Critical Kills . | . . . . . . . Critical Parts Destroyed 1 | . . . . . 1 . Critical Strikes 2 | . . . . . 2 . Destroy 1 | . . . . . 1 . Blast 1 | . . . . . 1 . Melee Attacks 62 | . 5 . . . 38 19 Impact 62 | . 5 . . . 38 19 Slashing . | . . . . . . . Piercing . | . . . . . . . Sneak Attacks 1 | . 1 . . . . . Combat Hostiles . | . . . . . . . Follow-up Attacks . | . . . . . . . Damage Inflicted 2438 | 182 422 105 . 59 1145 525 Guns 864 | 182 53 . . 39 590 . Cannons 823 | . 328 105 . 20 340 30 Explosions 120 | . . . . . 120 . Melee 631 | . 41 . . . 95 495 Ramming . | . . . . . . . Kinetic 1687 | 182 381 105 . 59 930 30 Thermal . | . . . . . . . Explosive 120 | . . . . . 120 . Electromagnetic . | . . . . . . . Impact 631 | . 41 . . . 95 495 Slashing . | . . . . . . . Piercing . | . . . . . . . Highest Corruption 10 | . . . . . . 10 Average Corruption 5 | . . . . . . 5 Corruption Purged . | . . . . . . . Corruption Blocked . | . . . . . . . Effects 3 | . . . . . . 3 Energy Discharges 1 | . . . . . . 1 Data Loss (minor) 1 | . . . . . . 1 Data Loss (major) 1 | . . . . . . 1 Overload Shots . | . . . . . . . Overflow Damage 145 | . 26 . . . 10 109 Projectiles 5 | . 5 . . . . . Explosions . | . . . . . . . Melee 140 | . 21 . . . 10 109 Knockbacks 14 | . 6 . . . 6 2 Impact 2 | . . . . . . 2 Kinetic 12 | . 6 . . . 6 . Secondary . | . . . . . . . Self-Inflicted Damage 30 | . . . . . 30 . Shots 2 | . . . . . 2 . Rammed . | . . . . . . . Targets Rammed . | . . . . . . . Kicked . | . . . . . . . Crushed . | . . . . . . . Highest Temperature 297 | 6 105 . . 7 297 . Average Temperature 78 | 6 56 . . 4 84 . Received Heat Transfer 519 | . 105 . . 9 405 . Effects 2 | . . . . . 2 . Energy Bleed 1 | . . . . . 1 . Interference 1 | . . . . . 1 . Siege Activations . | . . . . . . . Martial Activations . | . . . . . . . Shielding Activations . | . . . . . . . Robots Disrupted . | . . . . . . . Combat Hostiles . | . . . . . . . Robots Corrupted 3 | . 1 . . . 1 1 Combat Hostiles 1 | . . . . . . 1 Parts Fried 2 | . 1 . . . 1 . Impact Corruptions 10 | . 1 . . . 1 8 Robots Melted . | . . . . . . . Combat Hostiles . | . . . . . . . Parts Melted . | . . . . . . . Heat Transferred . | . . . . . . . Parts Sabotaged . | . . . . . . . Parts Stolen . | . . . . . . . Parts Stripped . | . . . . . . . Power Chain Reactions . | . . . . . . . Alert | -11 -10 -10 -10 -9 -8 -8 ------- Run | Yrd Mat Min Exi Min Mat Gar Maximum Alert Level 2 | . . . . . 2 1 Low Security (%) 85 | 100 100 100 . 100 71 . Level 1 10 | . . . . . 17 100 Level 2 3 | . . . . . 10 . Level 3 . | . . . . . . . Level 4 . | . . . . . . . Level 5 . | . . . . . . . High Security . | . . . . . . . Max Security . | . . . . . . . Peak Influence 426 | 5 85 66 . 50 426 269 Initial 268 | . 3 16 . . . 268 Average 68 | 1 19 14 . 20 131 253 Influence Increases 1054 | 10 212 77 . 50 664 41 Destroy 0b10 Robot/C 520 | . 100 60 . 40 280 40 Destroy 0b10 Robot/NC 40 | 10 20 . . . 10 . Destroy Leader 132 | . 28 10 . 10 84 . Successful Hack 56 | . 44 7 . . 5 . Destroy Structure 51 | . 5 . . . 45 1 Lose Combat Pursuer 255 | . 15 . . . 240 . Influence Decreases 795 | 5 174 120 . 50 251 195 Entered New Map 174 | . 2 27 . . . 145 Time Decay 528 | 5 171 93 . 40 219 . Lost Part 70 | . . . . . 20 50 Lost Ally 11 | . 1 . . 10 . . Purge Threat 12 | . . . . . 12 . Squads Dispatched 5 | . . 2 . . 3 . Investigation 3 | . . 2 . . 1 . Extermination . | . . . . . . . Reinforcement 1 | . . . . . 1 . Assault . | . . . . . . . Garrison 1 | . . . . . 1 . Intercept . | . . . . . . . Searches Triggered . | . . . . . . . Construction Impeded . | . . . . . . . Haulers Reinforced . | . . . . . . . Active Scanning Responses . | . . . . . . . Cargo Convoy Interrupts . | . . . . . . . Stealth | -11 -10 -10 -10 -9 -8 -8 --------- Run | Yrd Mat Min Exi Min Mat Gar Distress Signals 4 | . . . . . 4 . Communications Jammed . | . . . . . . . Distress Signals . | . . . . . . . Times Spotted 62 | . 12 3 . 3 41 3 Peak Tracking Total 17 | . 3 3 . 3 17 3 Tactical Retreats 10 | . 1 . . . 9 . Traps | -11 -10 -10 -10 -9 -8 -8 ------- Run | Yrd Mat Min Exi Min Mat Gar Traps Triggered 1 | . . . . . 1 . Indirectly . | . . . . . . . Trap Hack Attempts . | . . . . . . . Triggered . | . . . . . . . Disarmed . | . . . . . . . Reprogrammed . | . . . . . . . Reused . | . . . . . . . Traps Extracted . | . . . . . . . Installed . | . . . . . . . Triggered . | . . . . . . . Machines | -11 -10 -10 -10 -9 -8 -8 ---------- Run | Yrd Mat Min Exi Min Mat Gar Machines Disabled . | . . . . . . . Max in Single Turn . | . . . . . . . Machines Repaired . | . . . . . . . Machines Dismantled . | . . . . . . . Machines Sabotaged . | . . . . . . . Overloaded Fab Kills . | . . . . . . . Hacking | -11 -10 -10 -10 -9 -8 -8 --------- Run | Yrd Mat Min Exi Min Mat Gar Machines Accessed 19 | . 8 2 1 . 8 . Terminals 13 | . 7 1 . . 5 . Fabricators . | . . . . . . . Repair Stations . | . . . . . . . Recycling Units 2 | . 1 . . . 1 . Scanalyzers 1 | . . . . . 1 . Garrison Access 1 | . . . . . 1 . Total Hacks 63 | . 35 7 1 . 20 . Successful 36 | . 22 3 1 . 10 . Failed 27 | . 13 4 . . 10 . Catastrophic 3 | . . . . . 3 . Database Lockouts . | . . . . . . . Manual 45 | . 29 1 1 . 14 . Terminals 54 | . 34 6 . . 14 . Fabricators . | . . . . . . . Repair Stations . | . . . . . . . Recycling Units 2 | . 1 . . . 1 . Scanalyzers 2 | . . . . . 2 . Garrison Access 3 | . . . . . 3 . Terminal Hacks 17 | . 12 3 1 . 1 . Record 1 | . . 1 . . . . Part Schematic 1 | . 1 . . . . . Robot Schematic 2 | . 2 . . . . . Robot Analysis 5 | . 5 . . . . . Prototype ID Bank 1 | . 1 . . . . . Open Door 1 | . . 1 . . . . Branch Access Points 1 | . . 1 . . . . Unreport Threat 1 | . . . . . 1 . Locate Traps 1 | . 1 . . . . . Zone Layout 2 | . 2 . . . . . Proto ID Catalog 1 | . . . 1 . . . Fabricator Hacks . | . . . . . . . Repair Station Hacks . | . . . . . . . Recycling Unit Hacks . | . . . . . . . Scanalyzer 2 | . . . . . 2 . Insert Component 1 | . . . . . 1 . Analyze 1 | . . . . . 1 . Garrison Access Hacks 1 | . . . . . 1 . Unlock Access 1 | . . . . . 1 . Unauthorized Hacks 16 | . 10 . . . 6 . Terminals 14 | . 9 . . . 5 . Track 1 | . 1 . . . . . Assimilate 2 | . 2 . . . . . Botnet 11 | . 6 . . . 5 . Fabricators . | . . . . . . . Repair Stations . | . . . . . . . Recycling Units 2 | . 1 . . . 1 . Recyclers 2 | . 1 . . . 1 . Scanalyzers . | . . . . . . . Garrison Access . | . . . . . . . Data Cores Recovered . | . . . . . . . Used . | . . . . . . . Hacking Detections 14 | . 7 1 . . 6 . Full Trace Events 1 | . . 1 . . . . Feedback Events . | . . . . . . . Feedback Blocked . | . . . . . . . Robot Schematics Acquired 2 | . 2 . . . . . Robots Built . | . . . . . . . Authchips . | . . . . . . . Time . | . . . . . . . Total Robot Build Rating . | . . . . . . . Part Schematics Acquired 2 | . 1 . . . 1 . Parts Built . | . . . . . . . Authchips . | . . . . . . . Time . | . . . . . . . Total Part Build Rating . | . . . . . . . Parts Repaired . | . . . . . . . Time . | . . . . . . . Parts Recycled . | . . . . . . . Recycled Matter . | . . . . . . . Retrieved Matter . | . . . . . . . Retrieved Components . | . . . . . . . Parts Scanalyzed 1 | . . . . . 1 . Part Schematics Acquired 1 | . . . . . 1 . Parts Damaged 1 | . . . . . 1 . Bothacking | -11 -10 -10 -10 -9 -8 -8 ------------ Run | Yrd Mat Min Exi Min Mat Gar Used RIF Installer . | . . . . . . . Robots Hacked . | . . . . . . . Non-combat . | . . . . . . . Combat . | . . . . . . . Robot Hacks Applied . | . . . . . . . Relay Couplers Released . | . . . . . . . Fabnet Peak Effective % . | . . . . . . . Robots Rewired . | . . . . . . . Allies Hacked . | . . . . . . . Hacks Repelled . | . . . . . . . Allies | -11 -10 -10 -10 -9 -8 -8 -------- Run | Yrd Mat Min Exi Min Mat Gar Total Allies 3 | . 2 . . 1 . . Largest Group 2 | . 1 1 1 2 . . Highest-Rated Group 41 | . 10 10 10 41 . . Highest-Rated Ally 31 | . 10 10 10 31 . . Total Orders . | . . . . . . . Ally Attacks 1 | . . . . 1 . . Total Damage . | . . . . . . . Kills . | . . . . . . . Allies Corrupted . | . . . . . . . Allies Melted . | . . . . . . . Intel | -11 -10 -10 -10 -9 -8 -8 ------- Run | Yrd Mat Min Exi Min Mat Gar Active Infowar (turns) 2157 | 11 606 347 338 104 719 32 Structural 1916 | . 376 347 338 104 719 32 Seismic 980 | 11 230 . . . 714 25 Robot Analysis Total 5 | . 5 . . . . . Derelict Logs Recovered . | . . . . . . . Drone Launches . | . . . . . . . Drone Recoveries . | . . . . . . . Exploration | -11 -10 -10 -10 -9 -8 -8 ------------- Run | Yrd Mat Min Exi Min Mat Gar Turns Passed 2289 | 96 607 347 338 104 719 78 Spaces Moved 2000 | 69 480 242 270 58 852 29 Core 2 | 2 . . . . . . Treads 1 | . 1 . . . . . Legs . | . . . . . . . Wheels 1116 | 67 479 242 270 58 . . Hover . | . . . . . . . Flight 881 | . . . . . 852 29 Fastest Speed 50 | 50 80 110 125 125 50 50 Average Speed 85 | 79 104 124 125 125 50 50 Slowest Speed 240 | 80 240 125 125 125 50 50 Overloaded Moves . | . . . . . . . Propulsion Burnouts . | . . . . . . . Robots Hopped 9 | . . . . . 9 . Potential Cave-ins . | . . . . . . . Cave-ins Triggered . | . . . . . . . Exploration Rate (%) 45 | 4 88 52 68 20 78 7 Regions Visited 6 Branch Regions 3 Pre-discovered Areas 1 | . . . . 1 . . Known Exits Taken 1 | . . . . . 1 . Unknown Exits Taken 5 | 1 1 1 1 1 . . Scrap Searched 1 | . . 1 . . . . Spaces Dug 21 | . 3 . . . 17 1 Terrain Destroyed 47 | . 3 . . . 43 1 Melee 21 | . 3 . . . 17 1 Projectile 6 | . . . . . 6 . AOE 20 | . . . . . 20 . Terrain Rammed . | . . . . . . . Walls Destroyed . | . . . . . . . Machines Disabled . | . . . . . . . Actions | -11 -10 -10 -10 -9 -8 -8 --------- Run | Yrd Mat Min Exi Min Mat Gar Total 2280 | 86 538 269 270 80 984 53 Wait 41 | . 5 16 . 14 2 4 Move 1977 | 68 479 241 269 57 834 29 Hop 9 | . . . . . 9 . Pick Up 28 | 1 8 1 1 2 15 . Fast Attach 16 | 7 2 1 . . 6 . Attach 2 | . . . . . 2 . Detach 2 | . 2 . . . . . Swap 26 | . 9 . . . 17 . Drop 28 | . 7 1 . 2 18 . Fire 89 | 10 21 9 . 5 43 1 Melee 62 | . 5 . . . 38 19 Ram . | . . . . . . . Kick . | . . . . . . . Crush . | . . . . . . . Escape Stasis . | . . . . . . . Rewire . | . . . . . . . Trap . | . . . . . . . Miscellaneous . | . . . . . . . Route ------- -11/Scrapyard -10/Materials (discovered 5 exits: [*Mat x3] / *Min x2) -10/Mines -10/Exiles -9/Mines -8/Materials (discovered 3 exits: [*Fac] / [*Sto] / Gar) -8/Garrison History --------- Turn | Location | Event 10 | -11/Scrapyard | Discovered new exit (range 15) 97 | -11/Scrapyard | Entered Materials 138 | -10/Materials | Discovered new exit (range 16) 300 | -10/Materials | Build established: Mutant 305 | -10/Materials | Discovered new exit (range 9) 439 | -10/Materials | Discovered new exit (range 7) 486 | -10/Materials | Discovered new exit (range 7) 519 | -10/Materials | Discovered new exit (range 11) 704 | -10/Materials | Entered Mines 704 | -10/Mines | Accompanied by 1 ally 705 | -10/Mines | Assembled infested the area 710 | -10/Mines | Assisted by a Guerilla fighting off Assembled 848 | -10/Mines | Met a Derelict shopkeep closing up shop 962 | -10/Mines | Found a Scrap Suit stashed away for nefarious purposes 965 | -10/Mines | Found Scrap Suit 1030 | -10/Mines | Deemed a non-threat by the Exiles lab entrance 1030 | -10/Mines | Discovered new exit (range 6) 1051 | -10/Mines | Entered Exiles 1051 | -10/Exiles | Accompanied by 1 ally 1080 | -10/Exiles | Met 8R-AWN 1104 | -10/Exiles | Met EX-HEX 1136 | -10/Exiles | Met EX-BIN 1154 | -10/Exiles | Aligned with FarCom system 1155 | -10/Exiles | Given EX-Vault access code 1186 | -10/Exiles | Opened EX-Vault 1195 | -10/Exiles | Found Flying Fortress v7 1220 | -10/Exiles | Warned to stay clear of 0b10 Research branches 1325 | -10/Exiles | Met EX-DEC 1376 | -10/Exiles | Discovered new exit (range 10) 1389 | -10/Exiles | Left Exiles lab with Flying Fortress v7 1389 | -10/Exiles | Entered Mines 1389 | -9/Mines | Accompanied by 1 ally 1406 | -9/Mines | Escorted by a lone wolf Derelict 1426 | -9/Mines | Learned location of Storage (-8) 1475 | -9/Mines | Discovered new exit (range 5) 1493 | -9/Mines | Entered Materials 1493 | -8/Materials | Evolved 4 slots: Propulsion x2, Utility x2 1984 | -8/Materials | Discovered new exit (range 6) 2099 | -8/Materials | Discovered new exit (range 4) 2161 | -8/Materials | Garrison activated, responded to threat 2212 | -8/Materials | Identified exit to Garrison 2212 | -8/Materials | Entered Garrison 2257 | -8/Garrison | Core integrity fell below 50% 2272 | -8/Garrison | Core integrity fell below 20% 2281 | -8/Garrison | Lost 5 parts (1p1n2u1w) 2285 | -8/Garrison | System corruption reached 10% 2290 | -8/Garrison | Destroyed by P-60 Hacker with Shock Rifle Last Messages --------------- 02250_ Adv. Assault Cannon destroyed. 02260_ Destroyed Imp. Heat Sink. 02260_ Destroyed Target Analyzer. 02260_ P-60 Hacker system corrupted by crushing effect. 02263_ Destroyed Remote Datajack. 02263_ Destroyed Gravmag System. 02263_ P-60 Hacker system corrupted by crushing effect. 02268_ P-60 Hacker misfires. 02269_ System corrupted: Energy discharge (-25). 02278_ Destroyed Gravmag System. 02278_ Destroyed Shock Rifle. 02278_ P-60 Hacker system corrupted by crushing effect. 02279_ P-60 Hacker system terminally corrupted. 02286_ System corrupted: Component data lost. 02287_ Destroyed Gravmag System. 02287_ P-60 Hacker system corrupted by crushing effect. Map ----- +----------------------------------------------------+ | ?????????????????????????????????????????????????? | | ?????????????????????????????????????????????????? | | ?????????????????????????????????????????????????? | | ?????????????????????????????????????????????????? | | ?????????????????????????????????????????????????? | | ?????????????????????????????????????????????????? | | ?????????????????????????????????????????????????? | | ?????????????????????????????????????????????????? | | ?????????????????????????????????????????????????? | | ?????????????????????????????????????????????????? | | ?????????????????????????????????????????????????? | | ?????????????????????????????????????????????????? | | ?????????????????????????????????????????????????? | | ?????????????????????????????????????????????????? | | ?????????????????????????????????????????????????? | | ?????????????????????????????????????????????????? | | ???????????#####?????????????????????????????????? | | ???????????# #?????????????????????????????????? | | ??????###### #############?????????????????????? | | ?#" """""# #?????????????????????? | | ?#" "" #?????????????????????? | | ?#" "############## #?????????????????????? | | #" "?????????????# #?????????????????????? | | #""" ??????????????# #?????????????????????? | | ??####### ??????????????# p#?????????????????????? | | ????????#???????????????#@%#?????????????????????? | | ????????????????????????#[ #?????????????????????? | | ????????????????????????#%=#?????????????????????? | | ???????????????????????? % ?????????????????????? | | ????????????????????????# ????????????????????? | | ????????????????????????# ###???????????????????? | | ????????????????????????# #?????????????????????? | | ????????????????????????# #?????????????????????? | | ????????????????????????# #?????????????????????? | | ????????????ggg?????????? #?????????????????????? | | ????????????????????????? #?????????????????????? | | ????????????????????????? #?????????????????????? | | ????????????????????????? #?????????????????????? | | ????????????????????????? ??????????????????????? | | ????????????????????????? ??????????????????????? | | ????????????????????????? ??????????????????????? | | ?????????????????????????????????????????????????? | | ?????????????????????????????????????????????????? | | ?????????????????????????????????????????????????? | | ?????????????????????????????????????????????????? | | ?????????????????????????????????????????????????? | | ?????????????????????????????????????????????????? | | ?????????????????????????????????????????????????? | | ?????????????????????????????????????????????????? | | ?????????????????????????????????????????????????? | +----------------------------------------------------+ Best States ------------- Heat Dissipation 31 Energy Generation 14 Energy Capacity 280 Matter Stores 300 Matter Capacity 300 Sight Range 16 Terrain Scan Density 10 Armor Coverage 150 Evasion (%) 60 Recoil Reduction 1 Item Schematics ----------------- Lrg. Storage Unit | -10/Materials | Hacked Imp. Grenade Launcher | -8/Materials | Scanalyzed Robot Schematics ------------------ O-16 Technician | -10/Materials | Hacked M-13 Machinist | -10/Materials | Hacked Fabricated ------------ Nothing Repaired ---------- Nothing Alien Tech Used ----------------- None Achievements -------------- None Challenges ------------ None Game ------ Seed RingActuatorStick Manual? 0 Play Time 00:32:24 Cumulative 216.3 hours Start 2025.06.06 @ 16:51:06 End 2025.06.06 @ 17:23:47 Sessions 1 Manual Loads 0 Difficulty Rogue Special Mode None Game No. 111 Rogue 111 Adventurer 0 Explorer 0 Win Type - Total 14 Types 6/0/5/1/2/0/0/0/0/0 Lore% 81 Gallery% 68 Achievement% 65 Wizard Run 0 Options --------- Layout 1 ASCII 0 Keyboard 0 Movement Numpad Keybinds 0 Fullscreen 1 Font 24/Smallcaps Map View 50x35 Zoom Use 0% Tactical HUD 1 Map Filters NONE Filters NONE Steam 1 RUN: 555b3679-c263-4425-9d0d-5da051a888c5